[Event "Early-Titled-Tuesday-Blitz-September-12-2023"]
[Site "Chess.com"]
[Date "2023.09.12"]
[Round "4"]
[White "benny_aizenberg"]
[Black "Zampronha1971"]
[Result "1-0"]
[WhiteElo "2626"]
[BlackElo "2325"]
[TimeControl "180+1"]
[EndTime "8:39:03 PDT"]
[Termination "benny_aizenberg won by resignation"]

1. g4 {[%clk 0:03:00.9]} 1... c5 {[%clk 0:02:59]} 2. g5 {[%clk 0:03:01.8]} 2...
Nc6 {[%clk 0:02:59.3]} 3. h4 {[%clk 0:03:01]} 3... d5 {[%clk 0:02:59.6]} 4. Bg2
{[%clk 0:02:58.9]} 4... Bf5 {[%clk 0:02:59.7]} 5. d3 {[%clk 0:02:54.4]} 5... Qd7
{[%clk 0:02:54]} 6. Nc3 {[%clk 0:02:51.8]} 6... d4 {[%clk 0:02:50.5]} 7. Ne4
{[%clk 0:02:45.7]} 7... e6 {[%clk 0:02:47.4]} 8. Ng3 {[%clk 0:02:43.5]} 8... h6
{[%clk 0:02:42.9]} 9. Nxf5 {[%clk 0:02:39.7]} 9... exf5 {[%clk 0:02:43.8]} 10.
Bf4 {[%clk 0:02:35.7]} 10... hxg5 {[%clk 0:02:41.3]} 11. hxg5 {[%clk 0:02:34]}
11... Rxh1 {[%clk 0:02:42.2]} 12. Bxh1 {[%clk 0:02:34]} 12... Bd6 {[%clk
0:02:40]} 13. Qd2 {[%clk 0:02:29.6]} 13... O-O-O {[%clk 0:02:38.5]} 14. O-O-O
{[%clk 0:02:25.3]} 14... Nge7 {[%clk 0:02:38.9]} 15. Nf3 {[%clk 0:02:10.8]}
15... Nd5 {[%clk 0:02:34.2]} 16. Bxd6 {[%clk 0:02:08.4]} 16... Qxd6 {[%clk
0:02:35.1]} 17. Bg2 {[%clk 0:02:03]} 17... Rh8 {[%clk 0:02:33.5]} 18. Rh1 {[%clk
0:02:01.2]} 18... Rxh1+ {[%clk 0:02:32.1]} 19. Bxh1 {[%clk 0:01:59.8]} 19... Qf4
{[%clk 0:02:21.8]} 20. Qxf4 {[%clk 0:01:54.3]} 20... Nxf4 {[%clk 0:02:22.7]} 21.
Kd2 {[%clk 0:01:54]} 21... Nh3 {[%clk 0:02:12.5]} 22. Ke1 {[%clk 0:01:47.9]}
22... Kc7 {[%clk 0:02:11.7]} 23. Bg2 {[%clk 0:01:42.2]} 23... Nf4 {[%clk
0:02:11.6]} 24. Bf1 {[%clk 0:01:40.2]} 24... Kd6 {[%clk 0:02:09.1]} 25. e3
{[%clk 0:01:38.8]} 25... Ne6 {[%clk 0:02:08.9]} 26. c3 {[%clk 0:01:22.6]} 26...
dxc3 {[%clk 0:02:08.9]} 27. bxc3 {[%clk 0:01:21.9]} 27... Ne5 {[%clk 0:02:09]}
28. Nxe5 {[%clk 0:01:17.2]} 28... Kxe5 {[%clk 0:02:09.9]} 29. f4+ {[%clk
0:01:16.9]} 29... Kd6 {[%clk 0:02:09.5]} 30. Kd2 {[%clk 0:01:09.1]} 30... b5
{[%clk 0:02:09.8]} 31. d4 {[%clk 0:00:36.9]} 31... a6 {[%clk 0:02:02.8]} 32. Bd3
{[%clk 0:00:31.5]} 32... g6 {[%clk 0:02:02.1]} 33. Bc2 {[%clk 0:00:30]} 33... a5
{[%clk 0:01:52.8]} 34. Kd3 {[%clk 0:00:18.5]} 34... c4+ {[%clk 0:01:51.5]} 35.
Kd2 {[%clk 0:00:17.4]} 35... Nc7 {[%clk 0:01:47.3]} 36. Bd1 {[%clk 0:00:15.5]}
36... Nd5 {[%clk 0:01:39.2]} 37. a3 {[%clk 0:00:15.3]} 37... Nc7 {[%clk
0:01:17.5]} 38. Be2 {[%clk 0:00:15]} 38... a4 {[%clk 0:01:15.6]} 39. Bf3 {[%clk
0:00:14.3]} 39... Nd5 {[%clk 0:01:10.2]} 40. Bg2 {[%clk 0:00:14]} 40... Nc7
{[%clk 0:01:08.6]} 41. Bb7 {[%clk 0:00:13.2]} 41... Nd5 {[%clk 0:01:05.8]} 42.
Ba6 {[%clk 0:00:13.2]} 42... Nc7 {[%clk 0:01:05]} 43. Bc8 {[%clk 0:00:13.5]}
43... Nd5 {[%clk 0:01:04.2]} 44. Bb7 {[%clk 0:00:13.6]} 44... Nc7 {[%clk
0:01:00.9]} 45. Bf3 {[%clk 0:00:09.1]} 45... Nd5 {[%clk 0:01:00.9]} 46. Bh1
{[%clk 0:00:08.7]} 46... Nc7 {[%clk 0:01:00.4]} 47. Bg2 {[%clk 0:00:09.3]} 47...
Nd5 {[%clk 0:01:00.5]} 48. Bf3 {[%clk 0:00:09.9]} 48... Nc7 {[%clk 0:01:00.6]}
49. Bd1 {[%clk 0:00:08.9]} 49... Nd5 {[%clk 0:01:00]} 50. Bc2 {[%clk 0:00:09.5]}
50... Nc7 {[%clk 0:00:59.1]} 51. e4 {[%clk 0:00:08.9]} 51... fxe4 {[%clk
0:00:59.4]} 52. Bxe4 {[%clk 0:00:09.2]} 52... Nd5 {[%clk 0:00:59.4]} 53. f5
{[%clk 0:00:09.7]} 53... gxf5 {[%clk 0:00:55.2]} 54. Bxf5 {[%clk 0:00:10.6]}
54... Ne7 {[%clk 0:00:54.7]} 55. Bg4 {[%clk 0:00:10.5]} 55... Nc6 {[%clk
0:00:39.2]} 56. Bh5 {[%clk 0:00:09.8]} 56... Nd8 {[%clk 0:00:37.7]} 57. Ke3
{[%clk 0:00:09.4]} 57... Ne6 {[%clk 0:00:36.1]} 58. Bxf7 {[%clk 0:00:08.3]}
58... Nxg5 {[%clk 0:00:36]} 59. Be8 {[%clk 0:00:08.9]} 59... b4 {[%clk 0:00:26]}
60. cxb4 {[%clk 0:00:08.4]} 1-0

[Event "Early-Titled-Tuesday-Blitz-September-12-2023"]
[Site "Chess.com"]
[Date "2023.09.12"]
[Round "4"]
[White "Vision_64"]
[Black "Triumphmate"]
[Result "1-0"]
[WhiteElo "2355"]
[BlackElo "2506"]
[TimeControl "180+1"]
[EndTime "8:39:05 PDT"]
[Termination "Vision_64 won on time"]

1. e4 {[%clk 0:02:55.9]} 1... d5 {[%clk 0:02:54.5]} 2. exd5 {[%clk 0:02:54.9]}
2... Nf6 {[%clk 0:02:55]} 3. Bb5+ {[%clk 0:02:38.3]} 3... c6 {[%clk 0:02:53.7]}
4. dxc6 {[%clk 0:02:33.3]} 4... Nxc6 {[%clk 0:02:54.6]} 5. Nf3 {[%clk
0:02:30.3]} 5... Bg4 {[%clk 0:02:51.1]} 6. O-O {[%clk 0:02:23.4]} 6... e6 {[%clk
0:02:51]} 7. d4 {[%clk 0:02:16.7]} 7... Be7 {[%clk 0:02:50]} 8. c3 {[%clk
0:02:15.7]} 8... O-O {[%clk 0:02:48.7]} 9. h3 {[%clk 0:02:16.3]} 9... Bh5 {[%clk
0:02:47.7]} 10. Bf4 {[%clk 0:02:13]} 10... a6 {[%clk 0:02:34]} 11. Be2 {[%clk
0:02:05]} 11... b5 {[%clk 0:02:31]} 12. Nbd2 {[%clk 0:02:04.9]} 12... b4 {[%clk
0:02:18.6]} 13. Ne5 {[%clk 0:02:01.7]} 13... Bxe2 {[%clk 0:02:11.4]} 14. Qxe2
{[%clk 0:02:02.6]} 14... Qc8 {[%clk 0:01:39.6]} 15. Ndf3 {[%clk 0:01:39.7]}
15... Nd5 {[%clk 0:01:27.7]} 16. Bd2 {[%clk 0:01:38.9]} 16... a5 {[%clk
0:01:21.7]} 17. Nxc6 {[%clk 0:01:32.4]} 17... Qxc6 {[%clk 0:01:22.6]} 18. c4
{[%clk 0:01:29.9]} 18... Nf6 {[%clk 0:01:08.3]} 19. Ne5 {[%clk 0:01:26.1]} 19...
Qa6 {[%clk 0:00:57.7]} 20. Rac1 {[%clk 0:01:20.9]} 20... Rfd8 {[%clk 0:00:49.2]}
21. Be3 {[%clk 0:01:19.9]} 21... a4 {[%clk 0:00:45.6]} 22. Qf3 {[%clk
0:01:14.5]} 22... Rac8 {[%clk 0:00:39.3]} 23. Rfd1 {[%clk 0:01:09.1]} 23... b3
{[%clk 0:00:36.8]} 24. axb3 {[%clk 0:01:07.1]} 24... axb3 {[%clk 0:00:37.7]} 25.
Ra1 {[%clk 0:01:05.8]} 25... Qd6 {[%clk 0:00:25]} 26. Bf4 {[%clk 0:01:01.1]}
26... Qb6 {[%clk 0:00:20.7]} 27. Be3 {[%clk 0:00:54.8]} 27... h6 {[%clk
0:00:11.4]} 28. Ra4 {[%clk 0:00:44.4]} 28... Bd6 {[%clk 0:00:05.3]} 29. c5
{[%clk 0:00:40.6]} 29... Qb5 {[%clk 0:00:05.2]} 30. Ra7 {[%clk 0:00:30.2]} 30...
Bxe5 {[%clk 0:00:05.6]} 31. dxe5 {[%clk 0:00:30.3]} 31... Rxd1+ {[%clk
0:00:05.2]} 32. Qxd1 {[%clk 0:00:31.2]} 32... Nd5 {[%clk 0:00:06.1]} 33. Qf3
{[%clk 0:00:28.4]} 33... Rc7 {[%clk 0:00:05.4]} 34. Rxc7 {[%clk 0:00:22.5]}
34... Nxc7 {[%clk 0:00:06.3]} 35. Qe4 {[%clk 0:00:18.8]} 35... Nd5 {[%clk
0:00:05.3]} 36. Bd4 {[%clk 0:00:14.5]} 36... Qc4 {[%clk 0:00:04]} 37. f3 {[%clk
0:00:11.9]} 37... Qc2 {[%clk 0:00:04.2]} 38. Kh2 {[%clk 0:00:09.7]} 38... g6
{[%clk 0:00:03.1]} 39. Qe1 {[%clk 0:00:04.2]} 39... Qc4 {[%clk 0:00:02.6]} 40.
Qe4 {[%clk 0:00:04.2]} 40... Qc2 {[%clk 0:00:02.7]} 41. Qe1 {[%clk 0:00:04.6]}
41... Nf4 {[%clk 0:00:03.5]} 42. Qg1 {[%clk 0:00:02.6]} 42... Ne2 {[%clk
0:00:03.1]} 43. Qf2 {[%clk 0:00:02.8]} 43... Nf4 {[%clk 0:00:02.5]} 44. Be3
{[%clk 0:00:02.7]} 44... Nd3 {[%clk 0:00:01.3]} 45. Qg3 {[%clk 0:00:02]} 1-0

[Event "Early-Titled-Tuesday-Blitz-September-12-2023"]
[Site "Chess.com"]
[Date "2023.09.12"]
[Round "4"]
[White "crazy_but_lazy"]
[Black "ajedrezhoy"]
[Result "1-0"]
[WhiteElo "2628"]
[BlackElo "2414"]
[TimeControl "180+1"]
[EndTime "8:39:06 PDT"]
[Termination "crazy_but_lazy won on time"]

1. Nf3 {[%clk 0:03:00.8]} 1... Nf6 {[%clk 0:02:58.1]} 2. e3 {[%clk 0:02:56.1]}
2... b6 {[%clk 0:02:57.8]} 3. c4 {[%clk 0:02:56.1]} 3... Bb7 {[%clk 0:02:57.9]}
4. b3 {[%clk 0:02:56.6]} 4... g6 {[%clk 0:02:56.6]} 5. Bb2 {[%clk 0:02:56]} 5...
Bg7 {[%clk 0:02:56.8]} 6. Nc3 {[%clk 0:02:56.1]} 6... O-O {[%clk 0:02:56.7]} 7.
Qc2 {[%clk 0:02:51.7]} 7... c5 {[%clk 0:02:56.2]} 8. Be2 {[%clk 0:02:50.1]} 8...
Nc6 {[%clk 0:02:55.4]} 9. O-O {[%clk 0:02:46.2]} 9... d5 {[%clk 0:02:45.5]} 10.
cxd5 {[%clk 0:02:45.9]} 10... Nb4 {[%clk 0:02:40.6]} 11. Qb1 {[%clk 0:02:44.5]}
11... Nbxd5 {[%clk 0:02:30.3]} 12. Nxd5 {[%clk 0:02:42.9]} 12... Bxd5 {[%clk
0:02:29.5]} 13. Rd1 {[%clk 0:02:42.1]} 13... Qc8 {[%clk 0:02:09.4]} 14. Be5
{[%clk 0:02:35.8]} 14... Qb7 {[%clk 0:02:06.7]} 15. Qb2 {[%clk 0:02:34.9]} 15...
Nh5 {[%clk 0:01:58.5]} 16. Bxg7 {[%clk 0:02:34.3]} 16... Nxg7 {[%clk 0:01:58.4]}
17. Rac1 {[%clk 0:02:31.1]} 17... Rac8 {[%clk 0:01:57.2]} 18. Qe5 {[%clk
0:02:22.8]} 18... Ne6 {[%clk 0:01:53.1]} 19. h4 {[%clk 0:02:08.9]} 19... Rfd8
{[%clk 0:01:50.7]} 20. h5 {[%clk 0:02:07.9]} 20... Qc7 {[%clk 0:01:40.8]} 21.
hxg6 {[%clk 0:01:43.2]} 21... hxg6 {[%clk 0:01:38.4]} 22. Qxc7 {[%clk
0:01:43.1]} 22... Rxc7 {[%clk 0:01:36.1]} 23. Bc4 {[%clk 0:01:43.6]} 23... Bxc4
{[%clk 0:01:33.9]} 24. Rxc4 {[%clk 0:01:44.5]} 24... Rcd7 {[%clk 0:01:32.7]} 25.
Kf1 {[%clk 0:01:44.6]} 25... f6 {[%clk 0:01:31.5]} 26. Ke2 {[%clk 0:01:44.6]}
26... Kf7 {[%clk 0:01:25.6]} 27. Rh1 {[%clk 0:01:43.4]} 27... Kg7 {[%clk
0:01:24.1]} 28. Rch4 {[%clk 0:01:42.5]} 28... Nf8 {[%clk 0:01:21.7]} 29. g4
{[%clk 0:01:37.7]} 29... g5 {[%clk 0:01:20.1]} 30. Rh6 {[%clk 0:01:24.4]} 30...
e5 {[%clk 0:01:15.6]} 31. d4 {[%clk 0:00:46.7]} 31... cxd4 {[%clk 0:01:13.6]}
32. exd4 {[%clk 0:00:47.2]} 32... e4 {[%clk 0:01:07]} 33. Nd2 {[%clk 0:00:47.1]}
33... Rxd4 {[%clk 0:01:06.7]} 34. Nc4 {[%clk 0:00:47.8]} 34... Kf7 {[%clk
0:00:42.3]} 35. Rh8 {[%clk 0:00:43.3]} 35... Ke6 {[%clk 0:00:34.2]} 36. Rc1
{[%clk 0:00:30.2]} 36... Ng6 {[%clk 0:00:30]} 37. Rh7 {[%clk 0:00:28.6]} 37...
R8d7 {[%clk 0:00:28.8]} 38. Rxd7 {[%clk 0:00:21.6]} 38... Rxd7 {[%clk
0:00:28.1]} 39. Ke3 {[%clk 0:00:20.7]} 39... b5 {[%clk 0:00:16.7]} 40. Na5
{[%clk 0:00:19.2]} 40... Rd3+ {[%clk 0:00:15.5]} 41. Kxe4 {[%clk 0:00:18.2]}
41... Rd2 {[%clk 0:00:15.6]} 42. Rc6+ {[%clk 0:00:17.6]} 42... Ke7 {[%clk
0:00:14]} 43. Rc7+ {[%clk 0:00:17]} 43... Ke6 {[%clk 0:00:14.2]} 44. Rxa7 {[%clk
0:00:16.2]} 44... Rxa2 {[%clk 0:00:13.1]} 45. Nc6 {[%clk 0:00:15.1]} 45... Rxf2
{[%clk 0:00:11.2]} 46. Nd4+ {[%clk 0:00:14.1]} 46... Kd6 {[%clk 0:00:10.8]} 47.
Nxb5+ {[%clk 0:00:13.4]} 47... Kc5 {[%clk 0:00:11]} 48. Nc7 {[%clk 0:00:13]}
48... Rf4+ {[%clk 0:00:10.1]} 49. Ke3 {[%clk 0:00:13]} 49... Rxg4 {[%clk
0:00:09.5]} 50. Ne8 {[%clk 0:00:10.3]} 50... Rf4 {[%clk 0:00:08.7]} 51. Rf7
{[%clk 0:00:09.2]} 51... Ne5 {[%clk 0:00:07.2]} 52. Rc7+ {[%clk 0:00:08.1]}
52... Kb4 {[%clk 0:00:06.5]} 53. Rb7+ {[%clk 0:00:08.5]} 53... Kc3 {[%clk
0:00:06.3]} 54. Nd6 {[%clk 0:00:09]} 54... Rb4 {[%clk 0:00:01.6]} 55. Ne4+
{[%clk 0:00:09.3]} 55... Kxb3 {[%clk 0:00:01.4]} 56. Nc5+ {[%clk 0:00:09]} 1-0

[Event "Early-Titled-Tuesday-Blitz-September-12-2023"]
[Site "Chess.com"]
[Date "2023.09.12"]
[Round "4"]
[White "ShahMatKanal"]
[Black "Let_it_be_1"]
[Result "1/2-1/2"]
[WhiteElo "2509"]
[BlackElo "2671"]
[TimeControl "180+1"]
[EndTime "8:39:08 PDT"]
[Termination "Game drawn - insufficient material"]

1. d4 {[%clk 0:02:49.2]} 1... d5 {[%clk 0:02:59.8]} 2. c4 {[%clk 0:02:48.9]}
2... e6 {[%clk 0:02:59.7]} 3. cxd5 {[%clk 0:02:46]} 3... exd5 {[%clk 0:02:59.6]}
4. Nc3 {[%clk 0:02:46.7]} 4... c6 {[%clk 0:02:59.7]} 5. Bf4 {[%clk 0:02:46.7]}
5... Bf5 {[%clk 0:02:59.5]} 6. e3 {[%clk 0:02:40.8]} 6... Nf6 {[%clk 0:02:58.4]}
7. Bd3 {[%clk 0:02:40.1]} 7... Bxd3 {[%clk 0:02:58.2]} 8. Qxd3 {[%clk 0:02:41]}
8... Nbd7 {[%clk 0:02:56.8]} 9. Nf3 {[%clk 0:02:40]} 9... Be7 {[%clk 0:02:56.7]}
10. O-O {[%clk 0:02:39.3]} 10... O-O {[%clk 0:02:56.8]} 11. Rab1 {[%clk
0:02:33.2]} 11... a5 {[%clk 0:02:56.6]} 12. Qc2 {[%clk 0:02:32.1]} 12... Re8
{[%clk 0:02:55.9]} 13. Bg5 {[%clk 0:02:25.2]} 13... Ne4 {[%clk 0:02:40.9]} 14.
Bxe7 {[%clk 0:02:24.1]} 14... Qxe7 {[%clk 0:02:41.2]} 15. Nxe4 {[%clk
0:02:16.8]} 15... Qxe4 {[%clk 0:02:38.5]} 16. Qxe4 {[%clk 0:02:14.7]} 16... dxe4
{[%clk 0:02:27.1]} 17. Nd2 {[%clk 0:02:14.8]} 17... Nb6 {[%clk 0:02:26.5]} 18.
Rfc1 {[%clk 0:02:04.8]} 18... a4 {[%clk 0:02:16.8]} 19. Nc4 {[%clk 0:02:00.2]}
19... Nd5 {[%clk 0:02:12.5]} 20. a3 {[%clk 0:01:48.1]} 20... Re7 {[%clk
0:02:06.3]} 21. Kf1 {[%clk 0:01:40.1]} 21... f6 {[%clk 0:01:59.9]} 22. Ke2
{[%clk 0:01:37.5]} 22... Kf7 {[%clk 0:01:55.5]} 23. Nd6+ {[%clk 0:01:31.4]}
23... Kf8 {[%clk 0:01:51]} 24. Nc4 {[%clk 0:01:11.9]} 24... Ke8 {[%clk
0:01:40.2]} 25. Rc2 {[%clk 0:01:08]} 25... Kd7 {[%clk 0:01:38.1]} 26. Rbc1
{[%clk 0:01:04.7]} 26... Re6 {[%clk 0:01:31.4]} 27. Nd2 {[%clk 0:01:04]} 27...
b5 {[%clk 0:01:25.3]} 28. Nb1 {[%clk 0:01:01]} 28... Rb8 {[%clk 0:01:10.5]} 29.
Nc3 {[%clk 0:00:58.8]} 29... Nxc3+ {[%clk 0:01:04.8]} 30. bxc3 {[%clk 0:00:54]}
30... Rd6 {[%clk 0:00:52]} 31. Rb2 {[%clk 0:00:54]} 31... Kc7 {[%clk 0:00:43.8]}
32. c4 {[%clk 0:00:51.6]} 32... Kd7 {[%clk 0:00:23.4]} 33. c5 {[%clk 0:00:49]}
33... Rd5 {[%clk 0:00:22.8]} 34. Rb4 {[%clk 0:00:49.2]} 34... f5 {[%clk
0:00:22.5]} 35. g3 {[%clk 0:00:49.2]} 35... g5 {[%clk 0:00:22.3]} 36. Rcb1
{[%clk 0:00:49.4]} 36... Rf8 {[%clk 0:00:20.5]} 37. Rh1 {[%clk 0:00:49.7]} 37...
f4 {[%clk 0:00:20.4]} 38. g4 {[%clk 0:00:40.9]} 38... fxe3 {[%clk 0:00:19.4]}
39. fxe3 {[%clk 0:00:41.8]} 39... Ke6 {[%clk 0:00:18.3]} 40. h4 {[%clk
0:00:39.8]} 40... Rf7 {[%clk 0:00:17.1]} 41. hxg5 {[%clk 0:00:34.2]} 41... Rxg5
{[%clk 0:00:16.8]} 42. Rh6+ {[%clk 0:00:34.8]} 42... Rg6 {[%clk 0:00:15.3]} 43.
Rh5 {[%clk 0:00:20.7]} 43... Rgf6 {[%clk 0:00:14.7]} 44. d5+ {[%clk 0:00:18.4]}
44... cxd5 {[%clk 0:00:12.9]} 45. Rxb5 {[%clk 0:00:18.9]} 45... Rf2+ {[%clk
0:00:12.4]} 46. Kd1 {[%clk 0:00:19.6]} 46... Ra2 {[%clk 0:00:09.4]} 47. Rb6+
{[%clk 0:00:18]} 47... Ke7 {[%clk 0:00:09.2]} 48. Rb7+ {[%clk 0:00:18.2]} 48...
Kf8 {[%clk 0:00:09.4]} 49. Rxf7+ {[%clk 0:00:19.1]} 49... Kxf7 {[%clk
0:00:09.8]} 50. Rxh7+ {[%clk 0:00:20]} 50... Kg6 {[%clk 0:00:09.5]} 51. Rd7
{[%clk 0:00:19.9]} 51... Rxa3 {[%clk 0:00:09.1]} 52. Rxd5 {[%clk 0:00:18.4]}
52... Rxe3 {[%clk 0:00:09]} 53. Rd4 {[%clk 0:00:15.1]} 53... Rc3 {[%clk
0:00:07]} 54. Rxa4 {[%clk 0:00:12.5]} 54... Rxc5 {[%clk 0:00:06.9]} 55. Rxe4
{[%clk 0:00:12.6]} 55... Kg5 {[%clk 0:00:06.8]} 56. Ke2 {[%clk 0:00:12.6]} 56...
Rc3 {[%clk 0:00:07.1]} 57. Kd2 {[%clk 0:00:12.5]} 57... Ra3 {[%clk 0:00:07.2]}
58. Rc4 {[%clk 0:00:12.2]} 58... Rg3 {[%clk 0:00:07.5]} 59. Ke2 {[%clk
0:00:12.4]} 59... Rxg4 {[%clk 0:00:07.8]} 60. Rxg4+ {[%clk 0:00:12.8]} 60...
Kxg4 {[%clk 0:00:08.4]} 1/2-1/2

[Event "Early-Titled-Tuesday-Blitz-September-12-2023"]
[Site "Chess.com"]
[Date "2023.09.12"]
[Round "4"]
[White "Zhigalko_Sergei"]
[Black "Parhamov"]
[Result "0-1"]
[WhiteElo "2883"]
[BlackElo "3113"]
[TimeControl "180+1"]
[EndTime "8:39:12 PDT"]
[Termination "Parhamov won on time"]

1. e4 {[%clk 0:03:00.5]} 1... d6 {[%clk 0:02:59.6]} 2. d4 {[%clk 0:03:00.4]}
2... g6 {[%clk 0:02:59.5]} 3. Nc3 {[%clk 0:03:00.9]} 3... Bg7 {[%clk 0:02:59.8]}
4. Nf3 {[%clk 0:03:01.5]} 4... a6 {[%clk 0:03:00]} 5. Be3 {[%clk 0:03:01.9]}
5... Nd7 {[%clk 0:02:58.7]} 6. a4 {[%clk 0:02:47.3]} 6... b6 {[%clk 0:02:58.2]}
7. Bc4 {[%clk 0:02:47.1]} 7... e6 {[%clk 0:02:56.2]} 8. O-O {[%clk 0:02:46.4]}
8... Bb7 {[%clk 0:02:55.7]} 9. Re1 {[%clk 0:02:41.3]} 9... Ngf6 {[%clk
0:02:49.8]} 10. Bf4 {[%clk 0:02:19.4]} 10... O-O {[%clk 0:02:46.8]} 11. Qd2
{[%clk 0:02:15.3]} 11... Re8 {[%clk 0:02:31.9]} 12. Bh6 {[%clk 0:02:13.2]} 12...
c5 {[%clk 0:02:10.9]} 13. Bxg7 {[%clk 0:02:06.8]} 13... Kxg7 {[%clk 0:02:10.7]}
14. Rad1 {[%clk 0:02:00.8]} 14... Rc8 {[%clk 0:02:03]} 15. e5 {[%clk 0:01:49.4]}
15... Nh5 {[%clk 0:01:43.1]} 16. Be2 {[%clk 0:01:37.6]} 16... cxd4 {[%clk
0:01:35.3]} 17. Qxd4 {[%clk 0:01:12.4]} 17... Bxf3 {[%clk 0:00:58.2]} 18. Bxf3
{[%clk 0:01:08]} 18... d5 {[%clk 0:00:52]} 19. Bxh5 {[%clk 0:00:49.2]} 19... Rc4
{[%clk 0:00:50.1]} 20. Qe3 {[%clk 0:00:18.4]} 20... gxh5 {[%clk 0:00:50.2]} 21.
b3 {[%clk 0:00:18.9]} 21... Rg4 {[%clk 0:00:50.1]} 22. h3 {[%clk 0:00:16.6]}
22... Rg6 {[%clk 0:00:50.1]} 23. Ne2 {[%clk 0:00:16.5]} 23... Kh8 {[%clk
0:00:42]} 24. Nf4 {[%clk 0:00:16]} 24... Rg5 {[%clk 0:00:42.6]} 25. c4 {[%clk
0:00:15]} 25... dxc4 {[%clk 0:00:38.2]} 26. bxc4 {[%clk 0:00:06.6]} 26... Qe7
{[%clk 0:00:22.1]} 27. Nd3 {[%clk 0:00:02.7]} 27... Reg8 {[%clk 0:00:20.9]} 28.
g3 {[%clk 0:00:02.6]} 28... Rf5 {[%clk 0:00:16.8]} 29. Kg2 {[%clk 0:00:02.3]}
29... Nf8 {[%clk 0:00:14.2]} 30. Re2 {[%clk 0:00:02.3]} 30... Ng6 {[%clk
0:00:14.4]} 31. Kh2 {[%clk 0:00:03]} 31... Qa3 {[%clk 0:00:14.3]} 32. Rde1
{[%clk 0:00:02.4]} 32... Qxa4 {[%clk 0:00:14.3]} 33. Qxb6 {[%clk 0:00:02.6]}
33... Qxc4 {[%clk 0:00:14.1]} 34. Qe3 {[%clk 0:00:02.9]} 34... Qd5 {[%clk
0:00:13.2]} 35. Qe4 {[%clk 0:00:02.8]} 35... Qb5 {[%clk 0:00:08.6]} 36. Rd2
{[%clk 0:00:01.9]} 36... Ne7 {[%clk 0:00:07.8]} 37. Nf4 {[%clk 0:00:02]} 37...
Ng6 {[%clk 0:00:07.4]} 38. Ng2 {[%clk 0:00:01.9]} 38... Qxe5 {[%clk 0:00:05.4]}
39. Qb1 {[%clk 0:00:01.4]} 39... Qf6 {[%clk 0:00:05.5]} 40. Nf4 {[%clk
0:00:01.2]} 40... Nxf4 {[%clk 0:00:05.3]} 41. gxf4 {[%clk 0:00:01.9]} 41... Rxf4
{[%clk 0:00:06.2]} 42. Qb2 {[%clk 0:00:02.3]} 42... Qxb2 {[%clk 0:00:03.9]} 43.
Rxb2 {[%clk 0:00:03.2]} 43... Rg6 {[%clk 0:00:03.2]} 44. Re5 {[%clk 0:00:03.7]}
44... Rgf6 {[%clk 0:00:03]} 45. Kg3 {[%clk 0:00:03]} 45... R4f5 {[%clk
0:00:02.7]} 46. Re4 {[%clk 0:00:02.6]} 46... a5 {[%clk 0:00:03.1]} 47. Ra2
{[%clk 0:00:02.4]} 47... Kg7 {[%clk 0:00:03.6]} 48. Rea4 {[%clk 0:00:02.3]}
48... Rf3+ {[%clk 0:00:04]} 49. Kg2 {[%clk 0:00:02.4]} 49... R6f5 {[%clk
0:00:04.9]} 50. Rxa5 {[%clk 0:00:02.7]} 50... Rxf2+ {[%clk 0:00:05.5]} 51. Rxf2
{[%clk 0:00:01.3]} 51... Rxa5 {[%clk 0:00:06.2]} 52. Kg3 {[%clk 0:00:01.8]}
52... Rf5 {[%clk 0:00:05.6]} 53. Kh4 {[%clk 0:00:02.4]} 53... Rxf2 {[%clk
0:00:05.8]} 0-1